fUSD/lending_fUSD_20251119
["ID","MTS","AMOUNT","RATE_DAILY","PERIOD"]
[394389321,1763518242465,-151.0,0.00041816,120]
[394389322,1763518242474,-151.0,0.00041816,120]
[394389323,1763518242485,-151.0,0.00041816,120]
[394389324,1763518242498,-151.0,0.00041816,120]
[394389325,1763518242508,-151.0,0.00041816,120]
[394389326,1763518242517,-151.0,0.00041816,120]
[394389327,1763518242527,-151.0,0.00041816,120]
[394389328,1763518242535,-151.0,0.00041816,120]
[394389329,1763518242544,-285.330623,0.00041816,120]
[394389330,1763518242553,-151.0,0.00041816,120]
[394389331,1763518242563,-151.0,0.00041816,120]
[394389332,1763518242572,-151.0,0.00041816,120]
[394389333,1763518242582,-151.0,0.00041816,120]
[394389334,1763518242592,-151.0,0.00041816,120]
[394389335,1763518242601,-152.881792,0.00041816,120]
[394389336,1763518242610,-151.0,0.00041816,120]
[394389337,1763518242620,-151.0,0.00041816,120]
[394389338,1763518242629,-151.0,0.00041816,120]
[394389339,1763518242638,-151.0,0.00041816,120]
[394389340,1763518242647,-151.0,0.00041816,120]
[394389341,1763518242661,-151.0,0.00041816,120]
[394389342,1763518242670,-151.0,0.00041816,120]
[394389343,1763518242679,-151.0,0.00041816,120]
[394389344,1763518242690,-265.852755,0.00041816,120]
[394389345,1763518242700,-294.111238,0.00041816,120]
[394389346,1763518242709,-294.111238,0.00041816,120]
[394389347,1763518242718,-294.111238,0.00041816,120]
[394389348,1763518242727,-294.111238,0.00041816,120]
[394389350,1763518242738,-294.111238,0.00041816,120]
[394389351,1763518242747,-294.111238,0.00041816,120]
[394389352,1763518242756,-294.111238,0.00041816,120]
[394389353,1763518242765,-294.111238,0.00041816,120]
[394389354,1763518242774,-294.111238,0.00041816,120]
[394389355,1763518242783,-294.111238,0.00041816,120]
[394389356,1763518242793,-294.111238,0.00041816,120]
[394389357,1763518242803,-294.111238,0.00041816,120]
[394389358,1763518242812,-294.111238,0.00041816,120]
[394389359,1763518242822,-294.111238,0.00041816,120]
[394389360,1763518242831,-294.111238,0.00041816,120]
[394389361,1763518242840,-294.111238,0.00041816,120]
[394389362,1763518242849,-294.111238,0.00041816,120]
[394389363,1763518242858,-294.111238,0.00041816,120]
[394389364,1763518242867,-294.111238,0.00041816,120]
[394389365,1763518242877,-294.111243,0.00041816,120]
[394389366,1763518242886,-151.0,0.00041816,120]
[394389367,1763518242895,-151.0,0.00041816,120]
[394389368,1763518242904,-151.0,0.00041816,120]
[394389369,1763518242913,-151.0,0.00041816,120]
[394389370,1763518242922,-151.0,0.00041816,120]
[394389371,1763518242931,-151.0,0.00041816,120]
[394389372,1763518242940,-151.0,0.00041816,120]
[394389373,1763518242948,-164.742128,0.00041816,120]
[394389374,1763518242957,-846134.1665422,0.00041816,7]
[394389375,1763518242976,-636.88586202,0.00041816,7]
[394389376,1763518242987,-4561.52888299,0.00041816,7]
[394389377,1763518242998,-828.23894648,0.00041816,7]
[394389378,1763518243010,-15014.5798175,0.00041816,7]
[394389379,1763518243068,-150.0,0.00041808,30]
[394389381,1763518243210,-781.6856201,0.00041816,7]
[394389382,1763518243303,-7650.0,0.00041816,7]
[394389383,1763518243314,-1822.94719691,0.00041816,7]
[394389384,1763518243363,-150.0,0.00041808,120]
[394389385,1763518243372,-4048.32843341,0.00041816,7]
[394389388,1763518246318,-1000.0,0.00041607,2]
[394389389,1763518246328,-150.0,0.00041808,30]
[394389390,1763518246338,-500.0,0.00041808,30]
[394389391,1763518246347,-11467.02588549,0.00041816,7]
[394389392,1763518246358,-6877.22267999,0.00041816,7]
[394389395,1763518491407,425.18302835,0.00041816,120]
[394389397,1763518529848,668.63734537,0.00015901,2]
[394389398,1763518530115,667.0,0.00015901,2]
[394389399,1763518530527,667.0,0.00015901,2]
[394389400,1763518530803,667.0,0.00015901,2]
[394389401,1763518531067,667.0,0.00015901,2]
[394389419,1763518591592,500.70270649,0.00041816,30]
[394389420,1763518688207,152.49631125,0.00041819,120]
[394389421,1763518691843,200.0,0.00041819,30]
[394389428,1763518748878,500.0,0.00041819,120]
[394389429,1763518749506,500.0,0.00041819,120]
[394389430,1763518751273,151.32443606,0.00041819,30]
[394389431,1763518754587,6888.0,0.00041819,120]
[394389432,1763518755208,7142.856,0.00041819,120]
[394389433,1763518806666,250.0,0.00041819,120]
[394389434,1763518807180,6888.0,0.00041819,120]
[394389435,1763518807316,250.0,0.00041819,120]
[394389436,1763518807978,250.0,0.00041819,120]
[394389437,1763518808614,250.0,0.00041819,120]
[394389438,1763518809243,250.0,0.00041819,120]
[394389439,1763518809868,250.0,0.00041819,120]
[394389440,1763518810499,250.0,0.00041819,120]
[394389441,1763518811691,437.92264857,0.00041819,120]
[394389442,1763518813995,500.0,0.00041819,120]
[394389443,1763518814649,500.0,0.00041819,120]
[394389444,1763518815275,500.0,0.00041819,120]
[394389445,1763518818440,500.0,0.00041819,120]
[394389446,1763518819052,500.0,0.00041819,120]
[394389447,1763518819689,500.0,0.00041819,120]
[394389448,1763518828661,500.0,0.00041819,120]
[394389449,1763518829262,500.0,0.00041819,120]
[394389450,1763518829897,500.0,0.00041819,120]
[394389451,1763518830601,500.0,0.00041819,120]
[394389452,1763518831245,500.0,0.00041819,120]
[394389453,1763518831885,500.0,0.00041819,120]
[394389454,1763518832492,500.0,0.00041819,120]
[394389455,1763518833106,500.0,0.00041819,120]
[394389456,1763518833740,500.0,0.00041819,120]
[394389457,1763518834350,500.0,0.00041819,120]
[394389458,1763518866370,237.80478839,0.00041819,120]
[394389459,1763518868924,476.64652539,0.00041819,120]
[394389462,1763518924586,250.0,0.00041819,120]
[394389463,1763518924640,275.11055763,0.00041819,120]
[394389464,1763518925195,250.0,0.00041819,120]
[394389465,1763518925320,500.0,0.00041819,120]
[394389466,1763518925828,250.0,0.00041819,120]
[394389467,1763518925936,500.0,0.00041819,120]
[394389468,1763518926449,250.0,0.00041819,120]
[394389469,1763518926553,500.0,0.00041819,120]
[394389470,1763518927147,250.0,0.00041819,120]
[394389471,1763518927205,500.0,0.00041819,120]
[394389472,1763518927727,500.0,0.00041819,120]
[394389473,1763518927781,250.0,0.00041819,120]
[394389474,1763518927839,500.0,0.00041819,120]
[394389475,1763518928334,500.0,0.00041819,120]
[394389476,1763518928548,500.0,0.00041819,120]
[394389477,1763518928941,500.0,0.00041819,120]
[394389478,1763518929185,500.0,0.00041819,120]
[394389479,1763518929462,500.0,0.00041819,120]
[394389480,1763518929537,500.0,0.00041819,120]
[394389481,1763518929907,500.0,0.00041819,120]
[394389482,1763518930075,500.0,0.00041819,120]
[394389483,1763518930177,500.0,0.00041819,120]
[394389484,1763518930508,500.0,0.00041819,120]
[394389485,1763518930674,500.0,0.00041819,120]
[394389486,1763518930826,500.0,0.00041819,120]
[394389487,1763518931348,500.0,0.00041819,120]
[394389488,1763518931498,500.0,0.00041819,120]
[394389489,1763518931931,500.0,0.00041819,120]
[394389490,1763518931997,500.0,0.00041819,120]
[394389491,1763518932126,500.0,0.00041819,120]
[394389492,1763518932525,500.0,0.00041819,120]
[394389493,1763518932620,500.0,0.00041819,120]
[394389494,1763518933227,500.0,0.00041819,120]
[394389495,1763518933854,500.0,0.00041819,120]
[394389496,1763518936048,532.66367708,0.00041819,120]
[394389497,1763518939230,621.06596476,0.00041819,120]
[394389498,1763518941392,500.0,0.00041819,120]
[394389499,1763518942073,500.0,0.00041819,120]
[394389500,1763518942735,500.0,0.00041819,120]
[394389501,1763518943367,500.0,0.00041819,120]
[394389502,1763518943982,500.0,0.00041819,120]
[394389503,1763518944598,500.0,0.00041819,120]
[394389504,1763518945777,500.0,0.00041819,120]
[394389505,1763518946412,500.0,0.00041819,120]
[394389506,1763518947067,500.0,0.00041819,120]
[394389507,1763518947675,500.0,0.00041819,120]
[394389508,1763518948277,500.0,0.00041819,120]
[394389509,1763518951458,250.0,0.00041819,120]
[394389510,1763518952180,250.0,0.00041819,120]
[394389512,1763518952806,250.0,0.00041819,120]
[394389513,1763518953456,250.0,0.00041819,120]
[394389514,1763518954136,250.0,0.00041819,120]
[394389515,1763518954884,250.0,0.00041819,120]
[394389516,1763518955485,250.0,0.00041819,120]
[394389518,1763518956100,250.0,0.00041819,120]
[394389519,1763518956704,250.0,0.00041819,120]
[394389520,1763518957342,250.0,0.00041819,120]
[394389521,1763518958094,250.0,0.00041819,120]
[394389524,1763518978510,176.0,0.00041819,120]
[394389531,1763519053826,271.21893123,0.00041819,120]
[394389537,1763519107922,619.82090565,0.00041819,90]
[394389538,1763519112541,254.39623651,0.00041819,30]
[394389540,1763519113747,33149.41611508,0.00041819,30]
[394389541,1763519117059,160.22553221,0.00041819,120]
[394389542,1763519127362,312.07619369,0.00041819,30]
[394389543,1763519128048,244.82399142,0.00041819,30]
[394389547,1763519162098,288.90320157,0.00041819,120]
[394389548,1763519166402,166.09587044,0.00041819,60]
[394389549,1763519170417,195.0,0.000275,120]
[394389550,1763519170518,195.0,0.00028763,120]
[394389553,1763519180126,3868.17686224,0.000295,120]
[394389554,1763519193736,2117.0,0.00041819,30]
[394389564,1763519302961,1679.96979918,0.00041819,60]
[394389565,1763519304301,7440.72091686,0.00041819,60]
[394389567,1763519305251,4449.85441692,0.00041819,30]
[394389572,1763519317855,158.47129648,0.00041819,120]
[394389573,1763519318145,525.68838008,0.00041819,30]
[394389574,1763519320059,418.86001322,0.00041819,30]
[394389578,1763519337807,342.34,0.00013699,2]
[394389579,1763519381649,-7532.7853784,0.00017,2]
[394389581,1763519392866,8323.67,0.00013,2]
[394389582,1763519392888,3815.60783367,0.00013,2]
[394389589,1763519432091,-254.0,0.00016999,2]
[394389590,1763519432102,-46.0,0.00016999,2]
[394389592,1763519432111,-1200.0,0.00016999,2]
[394389594,1763519432120,-2694.52614573,0.00017,2]
[394389596,1763519432131,-51997.54617663,0.00017,2]
[394389598,1763519432139,-1680.0,0.00018659,2]
[394389600,1763519432148,-342.34,0.00020187,2]
[394389602,1763519432162,-2351.0,0.00020481,2]
[394389603,1763519432171,-500.0,0.00021,2]
[394389604,1763519432180,-500.0,0.00021,2]
[394389605,1763519432190,-307.63788583,0.00021,2]
[394389606,1763519432200,-501.03449953,0.00021,2]
[394389607,1763519432209,-500.0,0.00021,2]
[394389608,1763519432219,-500.0,0.00021,2]
[394389609,1763519432230,-500.0,0.00021,2]
[394389610,1763519432239,-500.0,0.00021,2]
[394389611,1763519432249,-1007.25619349,0.00021548,2]
[394389612,1763519432258,-350.99502169,0.00021548,2]
[394389613,1763519432268,-515.80477171,0.00021548,2]
[394389614,1763519432277,-1000.0,0.00021548,2]
[394389615,1763519432286,-501.90477646,0.00021548,2]
[394389616,1763519432295,-506.91267171,0.00021548,2]
[394389617,1763519432306,-3292.0,0.00022481,2]
[394389618,1763519432315,-501.76301213,0.00023,2]
[394389619,1763519432324,-501.82674646,0.00023,2]
[394389620,1763519432334,-500.0,0.00023,2]
[394389621,1763519432343,-1007.28347072,0.00023548,2]
[394389622,1763519432352,-415.0,0.00024676,2]
[394389623,1763519432361,-602.56336035,0.00025,2]
[394389624,1763519432370,-205.43008693,0.00025,2]
[394389625,1763519432379,-1766.81545495,0.00025,2]
[394389626,1763519432388,-360.0,0.00025,2]
[394389627,1763519432397,-3013.4275489,0.00025,2]
[394389628,1763519432406,-7064.24824191,0.00025,2]
[394389629,1763519432415,-1053.50853445,0.00025,2]
[394389630,1763519432424,-165.57413198,0.00025,2]
[394389631,1763519432432,-3380.99818078,0.00025,2]
[394389632,1763519432441,-342.34,0.00026676,2]
[394389633,1763519432451,-300.0,0.000275,119]
[394389634,1763519432459,-168.50107959,0.00027691,8]
[394389635,1763519432469,-300.0,0.00028763,119]
[394389636,1763519432478,-217.66,0.00029076,2]
[394389637,1763519432486,-189.23640983,0.00029448,12]
[394389638,1763519432496,-211.31176134,0.00031205,15]
[394389639,1763519432505,-301.56812754,0.00032526,3]
[394389640,1763519432514,-234.65023618,0.00032962,19]
[394389641,1763519432523,-342.34,0.00033165,2]
[394389642,1763519432532,-259.18683836,0.00034719,23]
[394389643,1763519432541,-152.89310882,0.00035,4]
[394389644,1763519432550,-161.59,0.00035754,2]
[394389645,1763519432559,-284.86568561,0.00036476,27]
[394389646,1763519432570,-1827.56,0.00036626,2]
[394389647,1763519432579,-522.4722916,0.00036819,30]
[394389649,1763519432588,-500.0,0.00036819,30]
[394389651,1763519432596,-500.0,0.00036819,30]
[394389653,1763519432605,-500.0,0.00036819,30]
[394389655,1763519432614,-1000.0,0.00036819,30]
[394389656,1763519432623,-500.0,0.00036819,30]
[394389657,1763519432632,-500.0,0.00036819,30]
[394389658,1763519432641,-500.0,0.00036819,30]
[394389659,1763519432651,-500.0,0.00036819,30]
[394389660,1763519432659,-500.0,0.000373,5]
[394389661,1763519432668,-501.94375083,0.000374,5]
[394389662,1763519432677,-3232.09,0.00037403,2]
[394389663,1763519432689,-502.16033169,0.00037575,5]
[394389664,1763519432698,-354.60024239,0.00037575,5]
[394389665,1763519432707,-500.0,0.00037575,5]
[394389666,1763519432716,-200.0,0.000376,5]
[394389667,1763519432725,-504.52146008,0.000376,5]
[394389668,1763519432734,-500.0,0.000376,5]
[394389669,1763519432742,-504.4631036,0.000376,5]
[394389670,1763519432751,-207.29988829,0.000376,5]
[394389671,1763519432759,-500.0,0.000376,5]
[394389672,1763519432769,-242.95850405,0.000376,5]
[394389673,1763519432778,-500.0,0.000376,5]
[394389674,1763519432787,-504.58273414,0.000376,5]
[394389675,1763519432796,-157.73847923,0.00037627,7]
[394389676,1763519432805,-150.0,0.00037627,7]
[394389677,1763519432815,-150.0,0.00037627,7]
[394389678,1763519432825,-150.0,0.00037627,7]
[394389679,1763519432835,-152.13575132,0.00037627,7]
[394389680,1763519432844,-159.74963523,0.00037627,7]
[394389681,1763519432853,-152.7733645,0.00037627,7]
[394389682,1763519432862,-151.00295596,0.00037627,7]
[394389683,1763519432872,-153.61653261,0.00037627,7]
[394389684,1763519432881,-150.48765499,0.00037627,7]
[394389685,1763519432890,-151.020598,0.00037627,7]
[394389686,1763519432898,-162.95795492,0.00037627,7]
[394389687,1763519432907,-155.48443192,0.00037627,7]
[394389688,1763519432917,-150.0,0.00037627,7]
[394389689,1763519432926,-166.66,0.00037675,30]
[394389690,1763519432935,-161.59,0.00037721,2]
[394389691,1763519432944,-845.15057782,0.00037848,5]
[394389692,1763519432953,-10114.37,0.00038052,2]
[394389693,1763519432962,-6025.72,0.00038052,2]
[394389694,1763519432971,-3727.12,0.00038052,2]
[394389695,1763519432980,-150.99,0.00038052,2]
[394389696,1763519432989,-151.79,0.00038074,2]
[394389697,1763519432998,-554.34903976,0.00038123,5]
[394389698,1763519433008,-503.88449546,0.00038148,5]
[394389699,1763519433017,-504.62978813,0.00038148,5]
[394389700,1763519433027,-311.63805868,0.00038233,30]
[394389701,1763519433036,-400.0,0.00038285,5]
[394389702,1763519433045,-166.66,0.00038468,30]
[394389703,1763519433054,-797.0,0.00038751,2]
[394389704,1763519433064,-1000.0,0.00038895,2]
[394389705,1763519433073,-855.99954265,0.000389,2]
[394389706,1763519433083,-205.29007824,0.0003897,5]
[394389707,1763519433092,-157.01,0.00039066,2]
[394389708,1763519433101,-166.66,0.00039261,30]
[394389709,1763519433110,-999.0,0.00039436,3]
[394389710,1763519433118,-1000.0,0.00039463,120]
[394389711,1763519433128,-250.0,0.00039479,2]
[394389712,1763519433138,-500.0,0.00039539,2]
[394389713,1763519433148,-342.34,0.00039654,2]
[394389714,1763519433161,-161.59,0.00039688,2]
[394389715,1763519433170,-3784.41,0.00039713,2]
[394389716,1763519433179,-113774.04755627,0.000398,2]
[394389717,1763519433191,-120976.60408553,0.000398,2]
[394389718,1763519433203,-35082.44873701,0.000398,2]
[394389719,1763519433213,-748.69638418,0.000398,2]
[394389720,1763519438256,-153.63997531,0.00039799,31]
[394389721,1763519438266,-1081.31262329,0.00039799,31]
[394389722,1763519438276,-500.0,0.00039799,31]
[394389723,1763519438285,-500.0,0.00039799,2]
[394389724,1763519438295,-1081.31262329,0.00039799,31]
[394389725,1763519438305,-500.0,0.00039799,31]
[394389726,1763519438315,-500.0,0.00039799,31]
[394389727,1763519438325,-500.0,0.00039799,2]
[394389728,1763519438335,-1081.31262329,0.00039799,31]
[394389729,1763519438344,-500.0,0.00039799,31]
[394389730,1763519438355,-1081.31262329,0.00039799,31]
[394389731,1763519438364,-500.0,0.00039799,2]
[394389732,1763519438374,-500.0,0.00039799,31]
[394389733,1763519438383,-1081.31262329,0.00039799,31]
[394389734,1763519438393,-1081.31262329,0.00039799,31]
[394389735,1763519438402,-500.0,0.00039799,2]
[394389736,1763519438411,-1081.31262329,0.00039799,31]
[394389737,1763519438420,-500.0,0.00039799,31]
[394389738,1763519438430,-500.0,0.00039799,31]
[394389739,1763519438439,-1081.31262329,0.00039799,31]
[394389740,1763519438448,-1081.31262329,0.00039799,31]
[394389741,1763519438457,-500.0,0.00039799,31]
[394389742,1763519438467,-640.45503915,0.00039799,2]
[394389743,1763519438477,-1081.31262329,0.00039799,31]
[394389744,1763519438488,-346.64872438,0.00039799,31]
[394389745,1763519438497,-1081.31262329,0.00039799,31]
[394389746,1763519438507,-500.0,0.00039799,31]
[394389747,1763519438517,-1081.31262329,0.00039799,31]
[394389748,1763519438527,-1081.31262329,0.00039799,31]
[394389749,1763519438538,-1081.31262329,0.00039799,31]
[394389750,1763519438548,-1081.31262329,0.00039799,31]
[394389751,1763519438557,-1081.31262329,0.00039799,31]
[394389752,1763519438566,-1081.31262329,0.00039799,31]
[394389753,1763519438577,-1081.31262329,0.00039799,31]
[394389754,1763519438587,-1081.31262329,0.00039799,31]
[394389755,1763519438598,-1081.31262329,0.00039799,31]
[394389756,1763519438607,-1081.31262329,0.00039799,31]
[394389757,1763519438617,-1081.31262329,0.00039799,31]
[394389758,1763519438627,-1081.31262329,0.00039799,31]
[394389759,1763519438637,-1081.31262329,0.00039799,31]
[394389760,1763519438646,-1081.31262329,0.00039799,31]
[394389761,1763519438655,-1081.31262329,0.00039799,31]
[394389762,1763519438665,-1081.31262329,0.00039799,31]
[394389763,1763519438675,-1081.31262329,0.00039799,31]
[394389764,1763519438684,-1081.31262329,0.00039799,31]
[394389765,1763519438693,-1081.31262329,0.00039799,31]
[394389766,1763519438702,-1081.31262329,0.00039799,31]
[394389767,1763519438712,-1081.31262329,0.00039799,31]
[394389768,1763519438721,-1081.31262329,0.00039799,31]
[394389769,1763519438731,-1081.31262329,0.00039799,31]
[394389770,1763519438741,-1081.31262329,0.00039799,31]
[394389771,1763519438751,-1081.31262329,0.00039799,31]
[394389772,1763519438763,-1081.31262329,0.00039799,31]
[394389773,1763519438772,-1081.31262329,0.00039799,31]
[394389774,1763519438781,-1081.31262329,0.00039799,31]
[394389775,1763519438791,-1081.31262329,0.00039799,31]
[394389776,1763519438801,-1081.31262329,0.00039799,31]
[394389777,1763519438810,-1081.31262329,0.00039799,31]
[394389778,1763519438821,-1081.31262329,0.00039799,31]
[394389779,1763519438831,-1081.31262329,0.00039799,31]
[394389780,1763519438841,-1081.31262329,0.00039799,31]
[394389781,1763519438851,-1081.31262329,0.00039799,31]
[394389782,1763519438862,-1081.31262329,0.00039799,31]
[394389783,1763519438872,-1081.31262329,0.00039799,31]
[394389784,1763519438882,-1081.31262329,0.00039799,31]
[394389785,1763519438892,-1081.31262329,0.00039799,31]
[394389786,1763519438902,-1081.31262329,0.00039799,31]
[394389787,1763519438911,-1081.31262329,0.00039799,31]
[394389788,1763519438921,-1081.31262329,0.00039799,31]
[394389789,1763519438931,-489418.20323701,0.000398,2]
[394389790,1763519438941,-16624.30276032,0.00039888,2]
[394389791,1763519438950,-185.75198961,0.00039973,5]
[394389792,1763519438961,-503.34564414,0.00039973,5]
[394389793,1763519438970,-502.11222657,0.00039973,5]
[394389794,1763519438980,-501.47898047,0.00039973,5]
[394389795,1763519438989,-254.3988211,0.00039973,5]
[394389796,1763519438999,-79936.44159,0.0003998,2]
[394389798,1763519439009,-339.46098971,0.0003999,34]
[394389800,1763519439019,-8007.24682841,0.00039999,2]
[394389802,1763519439029,-416.19306,0.0004,4]
[394389804,1763519439038,-2300.81494301,0.0004,2]
[394389806,1763519439048,-186.46505556,0.0004,30]
[394389808,1763519439058,-1007.92064577,0.0004,120]
[394389810,1763519439068,-7300.79785155,0.0004,120]
[394389813,1763519439078,-150.0,0.00040004,2]
[394389815,1763519439088,-150.0,0.00040004,120]
[394389817,1763519439097,-166.66,0.00040054,30]
[394389819,1763519439107,-423.5096,0.00040164,10]
[394389821,1763519439116,-153.0,0.00040179,120]
[394389822,1763519439126,-153.0,0.00040179,120]
[394389824,1763519439135,-153.0,0.00040179,120]
[394389827,1763519439144,-153.0,0.00040179,120]
[394389829,1763519439156,-153.0,0.00040179,120]
[394389831,1763519439166,-153.0,0.00040179,120]
[394389832,1763519439175,-153.0,0.00040179,120]
[394389833,1763519439184,-153.0,0.00040179,120]
[394389834,1763519439194,-153.0,0.00040179,120]
[394389835,1763519439205,-153.0,0.00040179,120]
[394389836,1763519439215,-323.57,0.00040179,30]
[394389837,1763519439224,-153.0,0.00040182,120]
[394389838,1763519439233,-153.0,0.00040182,120]
[394389839,1763519439243,-153.0,0.00040182,120]
[394389840,1763519439252,-153.0,0.00040182,120]
[394389841,1763519439262,-153.0,0.00040182,120]
[394389842,1763519439271,-153.0,0.00040182,120]
[394389843,1763519439280,-153.0,0.00040182,120]
[394389844,1763519439289,-153.0,0.00040182,120]
[394389845,1763519439299,-153.0,0.00040182,120]
[394389846,1763519439309,-153.0,0.00040182,120]
[394389847,1763519439318,-153.0,0.00040182,120]
[394389848,1763519439327,-153.0,0.00040182,120]
[394389849,1763519439336,-157.0,0.00040182,120]
[394389850,1763519439346,-157.0,0.00040182,120]
[394389851,1763519439355,-157.0,0.00040182,120]
[394389852,1763519439364,-157.0,0.00040182,120]
[394389853,1763519439373,-157.0,0.00040182,120]
[394389854,1763519439382,-157.0,0.00040182,120]
[394389855,1763519439391,-157.0,0.00040182,120]
[394389856,1763519439401,-157.0,0.00040182,120]
[394389857,1763519439410,-153.0,0.00040182,120]
[394389858,1763519439420,-153.0,0.00040182,120]
[394389859,1763519439430,-153.0,0.00040182,120]
[394389860,1763519439440,-153.0,0.00040182,120]
[394389861,1763519439449,-153.0,0.00040182,120]
[394389862,1763519439458,-153.0,0.00040182,120]
[394389863,1763519439467,-153.0,0.00040182,120]
[394389864,1763519439478,-153.0,0.00040182,120]
[394389865,1763519439488,-153.0,0.00040301,120]
[394389866,1763519439498,-153.0,0.00040301,120]
[394389867,1763519439509,-153.0,0.00040301,120]
[394389868,1763519439518,-153.0,0.00040301,120]
[394389869,1763519439528,-153.0,0.00040301,120]
[394389870,1763519439537,-153.0,0.00040301,120]
[394389871,1763519439545,-153.0,0.00040301,120]
[394389872,1763519439554,-153.0,0.00040301,120]
[394389873,1763519439564,-153.0,0.00040301,120]
[394389874,1763519439573,-153.0,0.00040301,120]
[394389875,1763519439582,-153.0,0.00040301,120]
[394389876,1763519439591,-153.0,0.00040301,120]
[394389877,1763519439600,-153.0,0.00040301,120]
[394389878,1763519439608,-153.0,0.00040301,120]
[394389879,1763519439617,-153.0,0.00040301,120]
[394389880,1763519439626,-153.0,0.00040301,120]
[394389881,1763519439635,-153.0,0.00040301,120]
[394389882,1763519439643,-153.0,0.00040301,120]
[394389883,1763519439652,-153.0,0.00040301,120]
[394389884,1763519439661,-153.0,0.00040301,120]
[394389885,1763519439670,-153.0,0.00040301,120]
[394389886,1763519439679,-153.0,0.00040301,120]
[394389887,1763519439689,-1467.7429,0.00040319,30]
[394389888,1763519439698,-323.57,0.00040453,30]
[394389889,1763519439707,-272.877,0.00040498,58]
[394389890,1763519439716,-651.916,0.00040498,58]
[394389891,1763519439725,-304.13394786,0.00040561,2]
[394389892,1763519439734,-168.0,0.00040564,7]
[394389893,1763519439744,-1436.93,0.00040632,2]
[394389894,1763519439753,-168.0,0.00040704,2]
[394389895,1763519439762,-323.57382583,0.00040727,30]
[394389896,1763519439772,-200.0,0.00040827,2]
[394389897,1763519439781,-166.66,0.00040847,30]
[394389898,1763519439790,-1633.11392731,0.00040915,2]
[394389899,1763519439800,-181.41586634,0.00041,2]
[394389900,1763519439809,-217.10673694,0.00041008,2]
[394389901,1763519439819,-2500.0,0.00041072,2]
[394389902,1763519439828,-504.02460785,0.00041073,5]
[394389903,1763519439838,-925.93166773,0.0004108,15]
[394389904,1763519439847,-234.87,0.00041081,2]
[394389905,1763519439856,-23428.6974,0.00041081,2]
[394389906,1763519439865,-5328.3868,0.00041081,2]
[394389907,1763519439875,-1000.0,0.00041081,2]
[394389908,1763519439884,-3362.4926,0.00041081,120]
[394389909,1763519439893,-250.7,0.00041096,120]
[394389910,1763519439902,-2000.0,0.000411,2]
[394389911,1763519439911,-925.93166767,0.00041151,15]
[394389912,1763519439920,-150.53,0.00041151,2]
[394389913,1763519439929,-203.61955083,0.00041151,7]
[394389914,1763519439938,-168.0,0.00041153,2]
[394389915,1763519439947,-31621.7913294,0.00041162,4]
[394389916,1763519439956,-47432.6869941,0.0004117,4]
[394389917,1763519439965,-500.0,0.00041171,2]
[394389918,1763519439974,-5270.2985549,0.00041171,4]
[394389919,1763519439983,-147568.359537,0.00041171,4]
[394389920,1763519439992,-16460.7667098,0.00041171,4]
[394389921,1763519440001,-501.01085723,0.00041173,10]
[394389922,1763519440010,-533.12509319,0.00041173,10]
[394389923,1763519440019,-500.0,0.00041173,10]
[394389924,1763519440028,-500.71998968,0.00041173,2]
[394389925,1763519440038,-517.9761024,0.00041181,120]